[Event "African Games Rapid Open 2019"]
[Site "Casablanca"]
[Date "2019.08.27"]
[Round "9.18"]
[White "Marie, Patrick"]
[Black "Sang, Ricky"]
[Result "0-1"]
[ECO "B84"]
[WhiteElo "1921"]
[BlackElo "1971"]
[Annotator "NA"]
[PlyCount "76"]
[EventDate "2019.08.26"]
[EventType "team-tourn"]
[EventCountry "MAR"]
[SourceTitle "playchess.com"]
[Source "ChessBase"]
[SourceQuality "1"]
[TimeControl "900+10"]

1. e4 {[%emt 0:00:00]} c5 {[%emt 0:00:00]} 2. Nf3 {[%emt 0:00:04]} d6 {[%emt 0:00:00]} 3. d4 {[%emt 0:00:02]} cxd4 {[%emt 0:00:00]} 4. Nxd4 {[%emt 0:00:02]} Nf6 {[%emt 0:00:00]} 5. Nc3 {[%emt 0:00:09]} a6 {[%emt 0:00:00]} 6. Be2 {[%emt 0:00:06]} e6 {[%emt 0:00:04]} 7. O-O {[%emt 0:00:04]} Be7 {[%emt 0:00:01]} 8. Be3 {[%emt 0:00:45]} O-O {[%emt 0:00:04]} 9. f4 {[%emt 0:01:25]} Nbd7 {[%emt 0:00:14]} 10. Bf3 {[%emt 0:00:13]} Qc7 {[%emt 0:00:05]} 11. Qe2 {[%emt 0:01:29]} Rb8 {[%emt 0:00:02]} 12. Rad1 {[%emt 0:00:31]} b5 {[%emt 0:00:02]} 13. a3 {[%emt 0:00:03]} Bb7 {[%emt 0:00:01]} 14. Nb3 {[%emt 0:01:45]} Nb6 {[%emt 0:00:43]} 15. Kh1 {[%emt 0:01:37]} Nc4 {[%emt 0:00:03]} 16. Bc1 {[%emt 0:00:02]} Rfc8 {[%emt 0:01:02]} 17. Nd4 {[%emt 0:00:22]} Nxa3 {[%emt 0:01:34]} 18. bxa3 {[%emt 0:00:58]} Qxc3 {[%emt 0:00:06]} 19. Rd3 {[%emt 0:00:04]} Qc7 {[%emt 0:00:10]} 20. e5 {[%emt 0:00:20]} Bxf3 {[%emt 0:01:25]} 21. Rdxf3 {[%emt 0:00:04]} Nd7 {[%emt 0:01:48]} 22. f5 {[%emt 0:00:42]} Nxe5 {[%emt 0:01:22]} 23. Rh3 {[%emt 0:00:55]} Qc4 {[%emt 0:00:40]} 24. fxe6 {[%emt 0:01:53]} Qxe2 {[%emt 0:00:52]} 25. exf7+ {[%emt 0:00:04]} Nxf7 {[%emt 0:00:07]} 26. Nxe2 {[%emt 0:00:06]} Rxc2 {[%emt 0:00:14]} 27. Nd4 {[%emt 0:00:09]} Rc4 {[%emt 0:00:54]} 28. Nf5 {[%emt 0:02:44]} Bf6 {[%emt 0:00:15]} 29. Ne3 {[%emt 0:00:24]} Rc5 {[%emt 0:01:05]} 30. Rhf3 {[%emt 0:00:39]} Ng5 {[%emt 0:00:55]} 31. Rg3 {[%emt 0:00:02]} Ne4 {[%emt 0:00:14]} 32. Rg4 {[%emt 0:00:23]} Nf2+ {[%emt 0:00:25]} 33. Rxf2 {[%emt 0:00:14]} Rxc1+ {[%emt 0:00:02]} 34. Nf1 {[%emt 0:00:05]} Be5 {[%emt 0:00:08]} 35. g3 {[%emt 0:00:07]} Rf8 {[%emt 0:00:13]} 36. Kg2 {[%emt 0:00:07]} Rxf2+ {[%emt 0:00:12]} 37. Kxf2 {[%emt 0:00:02]} Ra1 {[%emt 0:00:08]} 38. Ke3 {[%emt 0:00:25]} Rxf1 {[%emt 0:00:07]} 0-1

[Event "African Games Rapid Open 2019"]
[Site "Casablanca"]
[Date "2019.08.27"]
[Round "9.20"]
[White "Naipal, Hoolan"]
[Black "Asante Debesai Zerabruk"]
[Result "0-1"]
[ECO "B07"]
[WhiteElo "1785"]
[BlackElo "1712"]
[Annotator "NA"]
[PlyCount "46"]
[EventDate "2019.08.26"]
[EventType "team-tourn"]
[EventCountry "MAR"]
[SourceTitle "playchess.com"]
[Source "ChessBase"]
[SourceQuality "1"]
[TimeControl "900+10"]

1. e4 {[%emt 0:00:00]} d6 {[%emt 0:00:00]} 2. d4 {[%emt 0:00:00]} Nf6 {[%emt 0:00:00]} 3. Nc3 {[%emt 0:00:00]} Nbd7 {[%emt 0:00:00]} 4. Nf3 {[%emt 0:00:16]} e5 {[%emt 0:00:00]} 5. Bc4 {[%emt 0:00:48]} c6 {[%emt 0:00:02]} 6. a4 {[%emt 0:03:01]} Be7 {[%emt 0:00:04]} 7. O-O {[%emt 0:00:20]} Qc7 {[%emt 0:00:02]} 8. Qe2 {[%emt 0:01:09]} h6 {[%emt 0:00:06]} 9. Rd1 {[%emt 0:00:47]} Nf8 {[%emt 0:00:51]} 10. h3 {[%emt 0:00:11]} g5 {[%emt 0:00:02]} 11. Be3 {[%emt 0:01:37]} Ng6 {[%emt 0:00:09]} 12. Nh2 {[%emt 0:01:16]} Nf4 {[%emt 0:01:19]} 13. Bxf4 {[%emt 0:00:04]} gxf4 {[%emt 0:00:01]} 14. Kh1 {[%emt 0:01:26]} Bd7 {[%emt 0:02:41]} 15. a5 {[%emt 0:00:31]} Rg8 {[%emt 0:01:10]} 16. dxe5 {[%emt 0:01:41]} dxe5 {[%emt 0:00:02]} 17. Qf3 {[%emt 0:00:58]} Rg7 {[%emt 0:00:35]} 18. Bf1 {[%emt 0:01:42]} O-O-O {[%emt 0:01:32]} 19. a6 {[%emt 0:00:23]} b6 {[%emt 0:00:13]} 20. Rab1 {[%emt 0:00:47]} Rdg8 {[%emt 0:00:08]} 21. b4 {[%emt 0:00:24]} Nh7 {[%emt 0:00:40]} 22. Bc4 {[%emt 0:01:00]} b5 {[%emt 0:00:39]} 23. Bf1 {[%emt 0:00:17]} Ng5 {[%emt 0:00:04]} 0-1

[Event "African Games Rapid Open 2019"]
[Site "Casablanca"]
[Date "2019.08.27"]
[Round "9.23"]
[White "Kourakoumba, Florent"]
[Black "Winston Gerald, Mansfield Thomas"]
[Result "0-1"]
[ECO "C23"]
[WhiteElo "1677"]
[BlackElo "1872"]
[Annotator "NA"]
[PlyCount "80"]
[EventDate "2019.08.26"]
[EventType "team-tourn"]
[EventCountry "MAR"]
[SourceTitle "playchess.com"]
[Source "ChessBase"]
[SourceQuality "1"]
[TimeControl "900+10"]

1. e4 {[%emt 0:00:00]} e5 {[%emt 0:00:00]} 2. Bc4 {[%emt 0:00:00]} Nc6 {[%emt 0:00:00]} 3. c3 {[%emt 0:00:00]} d6 {[%emt 0:00:01]} 4. Ne2 {[%emt 0:00:06]} Nf6 {[%emt 0:00:05]} 5. d3 {[%emt 0:00:02]} Be7 {[%emt 0:00:07]} 6. O-O {[%emt 0:00:02]} O-O {[%emt 0:00:02]} 7. f4 {[%emt 0:00:05]} exf4 {[%emt 0:00:06]} 8. Nxf4 {[%emt 0:00:05]} a6 {[%emt 0:00:13]} 9. Bb3 {[%emt 0:00:05]} Na5 {[%emt 0:00:21]} 10. Bc2 {[%emt 0:00:02]} c5 {[%emt 0:00:06]} 11. Na3 {[%emt 0:00:07]} b5 {[%emt 0:00:09]} 12. d4 {[%emt 0:00:07]} Bb7 {[%emt 0:00:12]} 13. Qe2 {[%emt 0:00:15]} Qc7 {[%emt 0:00:36]} 14. Nh5 {[%emt 0:00:19]} cxd4 {[%emt 0:01:28]} 15. cxd4 {[%emt 0:00:09]} Nc4 {[%emt 0:00:40]} 16. e5 {[%emt 0:00:10]} dxe5 {[%emt 0:00:13]} 17. dxe5 {[%emt 0:00:03]} Qxe5 {[%emt 0:00:16]} 18. Qxe5 {[%emt 0:01:04]} Nxe5 {[%emt 0:00:02]} 19. Ng3 {[%emt 0:00:11]} Bc5+ {[%emt 0:00:32]} 20. Kh1 {[%emt 0:00:05]} Neg4 {[%emt 0:00:05]} 21. h3 {[%emt 0:01:44]} Nf2+ {[%emt 0:00:13]} 22. Kh2 {[%emt 0:00:14]} Rfe8 {[%emt 0:00:28]} 23. Bg5 {[%emt 0:00:03]} N6e4 {[%emt 0:01:08]} 24. Nxe4 {[%emt 0:00:23]} Nxe4 {[%emt 0:00:02]} 25. Bf4 {[%emt 0:00:22]} Nf6 {[%emt 0:00:26]} 26. Rac1 {[%emt 0:00:11]} Re2 {[%emt 0:00:20]} 27. Bxh7+ {[%emt 0:00:17]} Kxh7 {[%emt 0:00:05]} 28. Rxc5 {[%emt 0:00:01]} Rxg2+ {[%emt 0:00:04]} 29. Kh1 {[%emt 0:00:14]} Rc2+ {[%emt 0:00:13]} 30. Kg1 {[%emt 0:00:18]} Rxc5 {[%emt 0:00:02]} 31. Rf2 {[%emt 0:00:19]} Re8 {[%emt 0:00:08]} 32. Nc2 {[%emt 0:00:11]} Re4 {[%emt 0:00:49]} 33. Bg3 {[%emt 0:00:54]} Rg5 {[%emt 0:00:17]} 34. Kh2 {[%emt 0:00:04]} Kg8 {[%emt 0:00:15]} 35. a3 {[%emt 0:00:21]} Nh5 {[%emt 0:00:06]} 36. Bd6 {[%emt 0:00:13]} Rd5 {[%emt 0:00:10]} 37. Bb8 {[%emt 0:00:09]} Rd1 {[%emt 0:00:05]} 38. Nb4 {[%emt 0:00:36]} Ree1 {[%emt 0:00:11]} 39. Nd5 {[%emt 0:02:44]} Bxd5 {[%emt 0:00:03]} 40. Bg3 {[%emt 0:01:11]} Rh1# {[%emt 0:00:04]} 0-1